fUST/lending_fUST_20250627
["ID","MTS","AMOUNT","RATE_DAILY","PERIOD"]
[367951637,1750974645740,-460.0,0.00021917,2]
[367951638,1750974645750,-460.0,0.00021917,2]
[367951639,1750974645760,-524.48,0.00021917,2]
[367951640,1750974645769,-460.0,0.00021917,2]
[367951641,1750974645779,-1069.97,0.00021917,2]
[367951642,1750974645789,-460.0,0.00021917,2]
[367951643,1750974645798,-552.74,0.00021917,2]
[367951644,1750974645808,-1610.64,0.00021917,2]
[367951645,1750974645817,-2242.71,0.00021917,2]
[367951646,1750974645828,-1619.94,0.00021917,2]
[367951647,1750974645837,-497.1,0.00021917,2]
[367951648,1750974645846,-460.0,0.00021917,2]
[367951649,1750974645856,-460.0,0.00021917,2]
[367951650,1750974645865,-888.01,0.00021917,2]
[367951651,1750974645875,-608.72,0.00021917,2]
[367951652,1750974645884,-460.0,0.00021917,2]
[367951654,1750974645894,-460.0,0.00021917,2]
[367951655,1750974645903,-253.80761887,0.00021917,2]
[367951657,1750974645913,-460.0,0.00021917,2]
[367951659,1750974645922,-460.0,0.00021917,2]
[367951661,1750974645931,-460.0,0.00021917,2]
[367951663,1750974645940,-460.0,0.00021917,2]
[367951664,1750974645950,-333.63718952,0.00021917,2]
[367951666,1750974645959,-460.0,0.00021917,2]
[367951669,1750974645969,-5761.77,0.00021917,2]
[367951670,1750974645978,-559.79,0.00021917,2]
[367951673,1750974645987,-981.46,0.00021917,2]
[367951675,1750974645997,-460.0,0.00021917,2]
[367951676,1750974646008,-3545.39,0.00021917,2]
[367951679,1750974646018,-460.0,0.00021917,2]
[367951680,1750974646027,-460.0,0.00021917,2]
[367951682,1750974646038,-460.0,0.00021917,2]
[367951684,1750974646047,-460.0,0.00021917,2]
[367951686,1750974646057,-151.0,0.00021917,2]
[367951688,1750974646067,-722.72,0.00021917,2]
[367951691,1750974646076,-752.81,0.00021917,2]
[367951693,1750974646086,-460.0,0.00021917,2]
[367951694,1750974646095,-460.0,0.00021917,2]
[367951696,1750974646105,-386.66980465,0.00021917,2]
[367951698,1750974646115,-460.0,0.00021917,2]
[367951700,1750974646124,-477.37159032,0.00021917,2]
[367951702,1750974646133,-460.0,0.00021917,2]
[367951704,1750974646143,-283.58747644,0.00021917,2]
[367951706,1750974646152,-999.52,0.00021917,2]
[367951708,1750974646163,-793.52,0.00021917,2]
[367951710,1750974646173,-460.0,0.00021917,2]
[367951712,1750974646183,-460.0,0.00021917,2]
[367951715,1750974646193,-472.54,0.00021917,2]
[367951716,1750974646203,-460.0,0.00021917,2]
[367951718,1750974646213,-151.0,0.00021917,2]
[367951720,1750974646222,-460.0,0.00021917,2]
[367951722,1750974646232,-460.0,0.00021917,2]
[367951724,1750974646241,-547.91,0.00021917,2]
[367951726,1750974646251,-460.0,0.00021917,2]
[367951728,1750974646260,-460.0,0.00021917,2]
[367951730,1750974646270,-842.36,0.00021917,2]
[367951732,1750974646279,-460.0,0.00021917,2]
[367951734,1750974646288,-151.0,0.00021917,2]
[367951736,1750974646298,-343.782966,0.00021917,2]
[367951738,1750974646309,-460.0,0.00021917,2]
[367951740,1750974646319,-460.0,0.00021917,2]
[367951742,1750974646329,-1374.06,0.00021917,2]
[367951744,1750974646338,-460.0,0.00021917,2]
[367951746,1750974646348,-460.0,0.00021917,2]
[367951748,1750974646358,-595.1502684,0.00021917,2]
[367951750,1750974646367,-343.782966,0.00021917,2]
[367951752,1750974646377,-961.59,0.00021917,2]
[367951754,1750974646387,-785.15,0.00021917,2]
[367951756,1750974646396,-460.0,0.00021917,2]
[367951758,1750974646406,-460.0,0.00021917,2]
[367951760,1750974646415,-648.42,0.00021917,2]
[367951762,1750974646425,-460.0,0.00021917,2]
[367951764,1750974646434,-460.0,0.00021917,2]
[367951766,1750974646443,-474.07,0.00021917,2]
[367951768,1750974646452,-460.0,0.00021917,2]
[367951770,1750974646462,-394.00516856,0.00021917,2]
[367951772,1750974646471,-2334.46,0.00021917,2]
[367951774,1750974646481,-460.0,0.00021917,2]
[367951776,1750974646490,-460.0,0.00021917,2]
[367951778,1750974646499,-460.0,0.00021917,2]
[367951780,1750974646509,-460.0,0.00021917,2]
[367951782,1750974646518,-460.0,0.00021917,2]
[367951784,1750974646527,-460.0,0.00021917,2]
[367951786,1750974646536,-151.0,0.00021917,2]
[367951788,1750974646545,-430.0,0.00021917,2]
[367951790,1750974646554,-417.62751878,0.00021917,2]
[367951792,1750974646564,-501.71,0.00021917,2]
[367951794,1750974646574,-1166.89,0.00021917,2]
[367951796,1750974646583,-151.0,0.00021917,2]
[367951798,1750974646592,-460.0,0.00021917,2]
[367951800,1750974646602,-460.0,0.00021917,2]
[367951802,1750974646611,-460.0,0.00021917,2]
[367951804,1750974646620,-460.0,0.00021917,2]
[367951806,1750974646630,-1882.22,0.00021917,2]
[367951808,1750974646639,-289.911736,0.00021918,2]
[367951810,1750974646649,-150.0,0.00021918,2]
[367951812,1750974646658,-1000.0,0.0002192,5]
[367951814,1750974646668,-1000.0,0.0002194,5]
[367951816,1750974646678,-151.0,0.00021959,7]
[367951818,1750974646687,-151.0,0.00021959,7]
[367951819,1750974646696,-151.0,0.00021959,7]
[367951821,1750974646705,-151.0,0.00021959,7]
[367951823,1750974646715,-151.0,0.00021959,7]
[367951825,1750974646724,-151.0,0.00021959,7]
[367951827,1750974646734,-151.0,0.00021959,7]
[367951829,1750974646743,-1000.0,0.0002196,5]
[367951831,1750974646753,-500.0,0.00021973,2]
[367951833,1750974646763,-450.03615033,0.00021973,2]
[367951835,1750974646772,-500.0,0.00021973,2]
[367951837,1750974646782,-500.0,0.00021973,2]
[367951839,1750974646791,-500.0,0.00021973,2]
[367951842,1750974646802,-500.0,0.00021973,2]
[367951844,1750974646811,-500.0,0.00021973,2]
[367951846,1750974646822,-500.0,0.00021973,2]
[367951848,1750974646831,-500.0,0.00021973,2]
[367951850,1750974646840,-500.0,0.00021973,2]
[367951851,1750974646850,-500.0,0.00021973,2]
[367951853,1750974646860,-581.33748376,0.00021973,2]
[367951855,1750974646869,-500.0,0.00021973,2]
[367951857,1750974646878,-500.0,0.00021973,2]
[367951859,1750974646888,-500.0,0.00021973,2]
[367951861,1750974646897,-500.0,0.00021973,2]
[367951864,1750974646907,-500.0,0.00021973,2]
[367951866,1750974646916,-586.08574951,0.00021973,2]
[367951867,1750974646926,-256.20095805,0.00021973,2]
[367951869,1750974646936,-500.0,0.00021973,2]
[367951871,1750974646946,-500.0,0.00021973,2]
[367951873,1750974646955,-500.0,0.00021973,2]
[367951875,1750974646964,-547.72040314,0.00021973,2]
[367951877,1750974646974,-500.0,0.00021973,2]
[367951879,1750974646983,-500.0,0.00021973,2]
[367951881,1750974646993,-500.0,0.00021973,2]
[367951883,1750974647002,-500.0,0.00021973,2]
[367951885,1750974647015,-500.0,0.00021973,2]
[367951887,1750974647025,-500.0,0.00021973,2]
[367951889,1750974647034,-500.43078147,0.00021973,2]
[367951891,1750974647043,-153.17919225,0.00021973,2]
[367951893,1750974647055,-500.0,0.00021973,2]
[367951895,1750974647064,-500.0,0.00021973,2]
[367951897,1750974647074,-600.0,0.00021973,2]
[367951899,1750974647084,-464.29479316,0.00021973,2]
[367951901,1750974647093,-151.0,0.00021973,7]
[367951903,1750974647102,-151.0,0.00021973,7]
[367951905,1750974647111,-151.0,0.00021973,7]
[367951907,1750974647121,-151.0,0.00021973,7]
[367951909,1750974647130,-151.0,0.00021973,7]
[367951911,1750974647139,-151.0,0.00021973,7]
[367951913,1750974647149,-151.0,0.00021973,7]
[367951915,1750974647158,-151.393314,0.00021973,7]
[367951917,1750974647168,-227.152595,0.00021973,7]
[367951919,1750974647178,-227.152595,0.00021973,7]
[367951921,1750974647187,-151.0,0.00021973,7]
[367951923,1750974647197,-151.0,0.00021973,7]
[367951925,1750974647207,-363.957877,0.00021973,7]
[367951927,1750974647217,-363.957877,0.00021973,7]
[367951929,1750974647227,-151.0,0.00021973,7]
[367951931,1750974647236,-1000.0,0.0002198,5]
[367951933,1750974647246,-500.0,0.00021992,8]
[367951935,1750974647255,-500.0,0.00021992,8]
[367951937,1750974647265,-151.0,0.00021998,7]
[367951939,1750974647275,-151.0,0.00021998,7]
[367951941,1750974647284,-166.690495,0.00021998,7]
[367951943,1750974647294,-166.690495,0.00021998,7]
[367951945,1750974647303,-151.0,0.00021998,7]
[367951947,1750974647312,-218.34722895,0.00021999,2]
[367951949,1750974647321,-651.45491145,0.00021999,2]
[367951951,1750974647331,-500.0,0.00021999,2]
[367951953,1750974647340,-500.0,0.00021999,2]
[367951955,1750974647349,-466.08648716,0.00021999,2]
[367951957,1750974647359,-500.0,0.00021999,2]
[367951959,1750974647368,-500.0,0.00021999,2]
[367951961,1750974647377,-474.987454,0.00021999,2]
[367951963,1750974647386,-197.21752528,0.00021999,2]
[367951965,1750974647395,-558.27716034,0.00021999,2]
[367951967,1750974647404,-500.0,0.00021999,2]
[367951969,1750974647414,-218.23978042,0.00021999,2]
[367951971,1750974647423,-500.0,0.00021999,2]
[367951973,1750974647432,-500.0,0.00021999,2]
[367951975,1750974647442,-500.0,0.00021999,2]
[367951977,1750974647451,-500.0,0.00021999,2]
[367951979,1750974647460,-500.0,0.00021999,2]
[367951981,1750974647470,-500.0,0.00021999,2]
[367951983,1750974647479,-500.0,0.00021999,2]
[367951985,1750974647488,-500.0,0.00021999,2]
[367951987,1750974647498,-500.0,0.00021999,2]
[367951989,1750974647508,-500.0,0.00021999,2]
[367951991,1750974647517,-500.0,0.00021999,2]
[367951993,1750974647526,-500.0,0.00021999,2]
[367951995,1750974647536,-500.0,0.00021999,2]
[367951997,1750974647545,-500.0,0.00021999,2]
[367951999,1750974647554,-500.0,0.00021999,2]
[367952001,1750974647563,-482.86195479,0.00021999,2]
[367952003,1750974647573,-300.0,0.00021999,2]
[367952005,1750974647582,-180.0,0.00021999,2]
[367952007,1750974647591,-182.09721654,0.00021999,2]
[367952009,1750974647600,-293.71635812,0.00021999,2]
[367952011,1750974647609,-500.0,0.00021999,2]
[367952013,1750974647619,-538277.40209581,0.00022,2]
[367952094,1750974648446,-460.0,0.00021643,2]
[367952096,1750974648456,-460.0,0.00021643,2]
[367952098,1750974648465,-460.0,0.00021643,2]
[367952100,1750974648475,-460.0,0.00021643,2]
[367952102,1750974648484,-465.0330886,0.00021643,2]
[367952104,1750974648493,-460.0,0.00021643,2]
[367952106,1750974648503,-150.0,0.0002189,2]
[367952108,1750974648512,-460.0,0.00021917,2]
[367952110,1750974648522,-596.485375,0.00021917,2]
[367952112,1750974648531,-460.0,0.00021917,2]
[367952114,1750974648541,-596.485375,0.00021999,7]
[367952116,1750974648550,-27072.438744,0.00022,2]
[367955336,1750974878463,165.508446,0.00013699,2]
[367955338,1750975137584,554.10537364,0.000222,69]
[367955339,1750975142578,554.10537362,0.00022212,69]
[367955340,1750975147576,554.10537362,0.00022883,72]
[367955343,1750975642938,221.64214948,0.000222,69]
[367955344,1750975647900,221.64214944,0.000222,69]
[367955345,1750975652901,221.64214944,0.00022834,72]
[367955346,1750975756195,-298.7138,0.00019705,2]
[367955378,1750975832262,-83.24950828,0.00019705,2]
[367955380,1750975832272,-151.68979631,0.00020783,2]
[367955382,1750975832280,-822.33320691,0.0002099,2]
[367955384,1750975832290,-252.0,0.00021541,2]
[367955386,1750975832299,-300.0,0.00021542,2]
[367955388,1750975832309,-300.0,0.00021542,2]
[367955390,1750975832318,-300.0,0.00021542,2]
[367955392,1750975832328,-300.0,0.00021542,2]
[367955395,1750975832337,-1200.0,0.00021542,2]
[367955397,1750975832348,-4768.83186866,0.00021543,2]
[367955399,1750975832366,-1086.35750597,0.00021543,2]
[367955402,1750975832386,-7499.91780248,0.00021543,2]
[367955405,1750975832403,-37.62721039,0.00021543,2]
[367955407,1750975832412,-19829.53947785,0.00021543,3]
[367955410,1750975832421,-309.688913,0.0002156,4]
[367955413,1750975832431,-207.4,0.00021629,2]
[367955415,1750975832441,-5757.74913934,0.0002163,2]
[367955418,1750975832453,-9600.87139638,0.0002163,2]
[367955420,1750975832463,-334.16,0.00021633,3]
[367955423,1750975832472,-167.08,0.00021633,3]
[367955426,1750975832482,-501.26,0.00021633,3]
[367955428,1750975832491,-330.86,0.00021633,10]
[367955430,1750975832500,-230.24506774,0.00021641,2]
[367955432,1750975832510,-160.0,0.00021641,2]
[367955434,1750975832519,-836.92866116,0.00021641,2]
[367955435,1750975832528,-1078.49786893,0.00021641,2]
[367955436,1750975832538,-160.0,0.00021642,2]
[367955437,1750975832547,-183.645,0.00021642,2]
[367955438,1750975832557,-651.45491145,0.00021642,2]
[367955439,1750975832566,-500.0,0.00021642,2]
[367955440,1750975832575,-500.0,0.00021642,2]
[367955442,1750975832586,-500.0,0.00021642,2]
[367955443,1750975832595,-500.0,0.00021642,2]
[367955445,1750975832605,-500.0,0.00021642,2]
[367955447,1750975832614,-500.0,0.00021642,2]
[367955448,1750975832624,-500.0,0.00021642,2]
[367955449,1750975832633,-500.0,0.00021642,2]
[367955450,1750975832643,-500.0,0.00021642,2]
[367955451,1750975832653,-344.94105155,0.00021642,2]
[367955452,1750975832662,-500.0,0.00021642,2]
[367955453,1750975832672,-500.0,0.00021642,2]
[367955454,1750975832682,-448.94844195,0.00021642,2]
[367955455,1750975832691,-500.0,0.00021642,2]
[367955456,1750975832700,-500.0,0.00021642,2]
[367955457,1750975832710,-500.0,0.00021642,2]
[367955458,1750975832719,-500.0,0.00021642,2]
[367955459,1750975832729,-335.38745494,0.00021642,2]
[367955460,1750975832739,-500.0,0.00021642,2]
[367955461,1750975832748,-500.0,0.00021642,2]
[367955462,1750975832757,-500.0,0.00021642,2]
[367955463,1750975832766,-500.0,0.00021642,2]
[367955464,1750975832776,-500.0,0.00021642,2]
[367955465,1750975832785,-500.0,0.00021642,2]
[367955466,1750975832794,-380.23978042,0.00021642,2]
[367955467,1750975832804,-500.0,0.00021642,2]
[367955468,1750975832813,-500.0,0.00021642,2]
[367955469,1750975832823,-500.0,0.00021642,2]
[367955470,1750975832832,-500.0,0.00021642,2]
[367955471,1750975832841,-500.0,0.00021642,2]
[367955472,1750975832851,-500.0,0.00021642,2]
[367955473,1750975832860,-500.0,0.00021642,2]
[367955474,1750975832869,-500.49556479,0.00021642,2]
[367955475,1750975832879,-500.0,0.00021642,2]
[367955476,1750975832890,-339.26094098,0.00021642,2]
[367955477,1750975832899,-500.0,0.00021642,2]
[367955478,1750975832909,-500.0,0.00021642,2]
[367955479,1750975832918,-500.0,0.00021642,2]
[367955480,1750975832927,-500.0,0.00021642,2]
[367955481,1750975832937,-469.48642908,0.00021642,2]
[367955482,1750975832948,-412.86203555,0.00021642,2]
[367955536,1750975838432,-87.13796445,0.00021642,2]
[367955538,1750975838442,-500.0,0.00021642,2]
[367955540,1750975838451,-599.18850421,0.00021642,2]
[367955542,1750975838462,-500.0,0.00021642,2]
[367955544,1750975838472,-500.0,0.00021642,2]
[367955546,1750975838482,-500.0,0.00021642,2]
[367955548,1750975838492,-500.0,0.00021642,2]
[367955550,1750975838502,-500.0,0.00021642,2]
[367955552,1750975838511,-500.0,0.00021642,2]
[367955554,1750975838521,-500.0,0.00021642,2]
[367955556,1750975838532,-500.0,0.00021642,2]
[367955558,1750975838541,-500.0,0.00021642,2]
[367955560,1750975838551,-500.0,0.00021642,2]
[367955562,1750975838560,-280.51357092,0.00021642,2]
[367955564,1750975838570,-500.0,0.00021642,2]
[367955566,1750975838579,-500.0,0.00021642,2]
[367955568,1750975838589,-500.0,0.00021642,2]
[367955570,1750975838598,-650.0,0.00021642,2]
[367955572,1750975838608,-500.0,0.00021642,2]
[367955574,1750975838617,-500.0,0.00021642,2]
[367955576,1750975838627,-500.0,0.00021642,2]
[367955578,1750975838636,-500.0,0.00021642,2]
[367955580,1750975838646,-500.0,0.00021642,2]
[367955582,1750975838655,-500.0,0.00021642,2]
[367955583,1750975838665,-500.0,0.00021642,2]
[367955585,1750975838676,-500.0,0.00021642,2]
[367955588,1750975838686,-500.0,0.00021642,2]
[367955590,1750975838696,-500.0,0.00021642,2]
[367955592,1750975838706,-500.0,0.00021642,2]
[367955594,1750975838718,-500.0,0.00021642,2]
[367955596,1750975838728,-500.0,0.00021642,2]
[367955598,1750975838738,-500.0,0.00021642,2]
[367955599,1750975838748,-500.0,0.00021642,2]
[367955601,1750975838758,-500.0,0.00021642,2]
[367955603,1750975838768,-531.66495605,0.00021642,2]
[367955605,1750975838777,-500.0,0.00021642,2]
[367955607,1750975838787,-152.6811439,0.00021642,2]
[367955609,1750975838796,-500.0,0.00021642,2]
[367955611,1750975838807,-500.0,0.00021642,2]
[367955613,1750975838816,-500.0,0.00021642,2]
[367955615,1750975838826,-500.0,0.00021642,2]
[367955617,1750975838836,-500.0,0.00021642,2]
[367955619,1750975838845,-500.0,0.00021642,2]
[367955621,1750975838855,-500.0,0.00021642,2]
[367955623,1750975838864,-500.0,0.00021642,2]
[367955626,1750975838874,-500.0,0.00021642,2]
[367955628,1750975838884,-500.0,0.00021642,2]
[367955630,1750975838894,-500.0,0.00021642,2]
[367955632,1750975838903,-258.30454713,0.00021642,2]
[367955634,1750975838912,-460.0,0.00021643,2]
[367955636,1750975838922,-460.0,0.00021643,2]
[367955638,1750975838933,-460.0,0.00021643,2]
[367955640,1750975838943,-460.0,0.00021643,2]
[367955642,1750975838953,-460.0,0.00021643,2]
[367955644,1750975838962,-434.67464137,0.00021643,2]
[367955646,1750975838971,-434.31898164,0.00021643,2]
[367955648,1750975838981,-460.0,0.00021643,2]
[367955650,1750975838991,-460.0,0.00021643,2]
[367955652,1750975839000,-460.0,0.00021643,2]
[367955653,1750975839009,-460.0,0.00021643,2]
[367955656,1750975839019,-460.0,0.00021643,2]
[367955658,1750975839028,-460.0,0.00021643,2]
[367955660,1750975839037,-460.0,0.00021643,2]
[367955662,1750975839047,-460.0,0.00021643,2]
[367955664,1750975839056,-460.0,0.00021643,2]
[367955666,1750975839067,-291.05667791,0.00021643,2]
[367955667,1750975839076,-460.0,0.00021643,2]
[367955670,1750975839087,-460.0,0.00021643,2]
[367955672,1750975839097,-460.0,0.00021643,2]
[367955674,1750975839107,-598.14986075,0.00021643,2]
[367955676,1750975839116,-531.63613574,0.00021643,2]
[367955678,1750975839125,-460.0,0.00021643,2]
[367955680,1750975839135,-547.78707595,0.00021643,2]
[367955682,1750975839144,-432.94515881,0.00021643,2]
[367955684,1750975839153,-400.0,0.00021643,2]
[367955686,1750975839162,-460.0,0.00021643,2]
[367955688,1750975839172,-460.0,0.00021643,2]
[367955690,1750975839181,-460.0,0.00021643,2]
[367955692,1750975839191,-460.0,0.00021643,2]
[367955694,1750975839200,-460.0,0.00021643,2]
[367955696,1750975839209,-460.0,0.00021643,2]
[367955698,1750975839218,-460.0,0.00021643,2]
[367955700,1750975839227,-461.24544363,0.00021643,2]
[367955702,1750975839236,-460.0,0.00021643,2]
[367955703,1750975839246,-460.0,0.00021643,2]
[367955705,1750975839257,-381.97526461,0.00021643,2]
[367955707,1750975839269,-460.0,0.00021643,2]
[367955709,1750975839279,-460.0,0.00021643,2]
[367955711,1750975839288,-475.38960573,0.00021643,2]
[367955713,1750975839298,-444.96870292,0.00021643,2]
[367955736,1750975839509,-460.0,0.00021643,2]
[367955738,1750975839518,-460.0,0.00021643,2]
[367955740,1750975839528,-460.0,0.00021643,2]
[367955742,1750975839537,-460.0,0.00021643,2]
[367955744,1750975839547,-460.0,0.00021643,2]
[367955746,1750975839556,-460.58183251,0.00021643,2]
[367955748,1750975839565,-460.0,0.00021643,2]
[367955750,1750975839575,-401.29086827,0.00021643,2]
[367955752,1750975839584,-460.0,0.00021643,2]
[367955754,1750975839594,-460.0,0.00021643,2]
[367955756,1750975839603,-460.0,0.00021643,2]
[367955758,1750975839613,-460.0,0.00021643,2]
[367955760,1750975839623,-460.0,0.00021643,2]
[367955762,1750975839632,-460.0,0.00021643,2]
[367955764,1750975839642,-597.69170077,0.00021643,2]
[367955766,1750975839651,-460.0,0.00021643,2]
[367955768,1750975839660,-432.20877268,0.00021643,2]
[367955770,1750975839669,-460.0,0.00021643,2]
[367955772,1750975839679,-500.0,0.00021643,2]
[367955774,1750975839688,-500.0,0.00021643,2]
[367955776,1750975839697,-495.06,0.00021643,2]
[367955778,1750975839706,-460.0,0.00021643,2]
[367955780,1750975839714,-435.24096915,0.00021643,2]
[367955782,1750975839724,-460.0,0.00021643,2]
[367955783,1750975839733,-400.78012797,0.00021643,2]
[367955785,1750975839742,-460.0,0.00021643,2]
[367955787,1750975839751,-460.0,0.00021643,2]
[367955790,1750975839761,-400.0,0.00021643,2]
[367955792,1750975839771,-460.0,0.00021643,2]
[367955794,1750975839781,-460.0,0.00021643,2]
[367955796,1750975839791,-560.7576648,0.00021643,2]
[367955798,1750975839801,-460.0,0.00021643,2]
[367955800,1750975839811,-460.0,0.00021643,2]
[367955802,1750975839820,-460.0,0.00021643,2]
[367955804,1750975839831,-460.0,0.00021643,2]
[367955806,1750975839841,-460.0,0.00021643,2]
[367955808,1750975839850,-460.0,0.00021643,2]
[367955810,1750975839859,-286.55843391,0.00021643,2]
[367955811,1750975839868,-460.0,0.00021643,2]
[367955813,1750975839877,-460.0,0.00021643,2]
[367955815,1750975839887,-460.0,0.00021643,2]
[367955817,1750975839896,-460.0,0.00021643,2]
[367955820,1750975839905,-320.82673578,0.00021643,2]
[367955822,1750975839915,-597.05320315,0.00021643,2]
[367955824,1750975839925,-533.02,0.00021643,2]
[367955826,1750975839936,-460.0,0.00021643,2]
[367955828,1750975839945,-460.0,0.00021643,2]
[367955829,1750975839954,-460.0,0.00021643,2]
[367955831,1750975839963,-460.0,0.00021643,2]
[367955833,1750975839972,-460.0,0.00021643,2]
[367955836,1750975839982,-460.39461276,0.00021643,2]
[367955837,1750975839991,-460.0,0.00021643,2]
[367955839,1750975840000,-460.0,0.00021643,2]
[367955841,1750975840009,-460.0,0.00021643,2]
[367955843,1750975840018,-460.0,0.00021643,2]
[367955846,1750975840028,-899.67,0.00021643,2]
[367955848,1750975840038,-286.46887693,0.00021643,2]
[367955850,1750975840048,-536.46974944,0.00021643,2]
[367955852,1750975840057,-460.0,0.00021643,2]
[367955854,1750975840066,-460.0,0.00021643,2]
[367955856,1750975840076,-305.88700293,0.00021643,2]
[367955858,1750975840085,-1000.0,0.00021643,2]
[367955860,1750975840095,-460.0,0.00021643,2]
[367955862,1750975840104,-460.0,0.00021643,2]
[367955864,1750975840113,-460.0,0.00021643,2]
[367955865,1750975840122,-460.0,0.00021643,2]
[367955868,1750975840132,-460.0,0.00021643,2]
[367955870,1750975840142,-460.0,0.00021643,2]
[367955871,1750975840151,-460.0,0.00021643,2]
[367955872,1750975840160,-272.42996716,0.00021643,2]
[367955873,1750975840169,-460.0,0.00021643,2]
[367955874,1750975840179,-490.51,0.00021643,2]
[367955875,1750975840189,-460.0,0.00021643,2]
[367955876,1750975840198,-460.0,0.00021643,2]
[367955877,1750975840208,-460.0,0.00021643,2]
[367955878,1750975840217,-460.0,0.00021643,2]
[367955879,1750975840226,-460.0,0.00021643,2]
[367955880,1750975840235,-727.39,0.00021643,2]
[367955881,1750975840244,-514.34440801,0.00021643,2]
[367955882,1750975840254,-639.4,0.00021643,2]
[367955883,1750975840263,-460.0,0.00021643,2]
[367955884,1750975840272,-473.95235178,0.00021643,2]
[367955885,1750975840283,-460.0,0.00021643,2]
[367955886,1750975840293,-460.0,0.00021643,2]
[367955887,1750975840302,-460.0,0.00021643,2]
[367955888,1750975840312,-460.0,0.00021643,2]
[367955889,1750975840321,-460.0,0.00021643,2]
[367955890,1750975840331,-460.0,0.00021643,2]
[367955891,1750975840341,-460.0,0.00021643,2]
[367955892,1750975840350,-460.0,0.00021643,2]
[367955893,1750975840363,-598.48623069,0.00021643,2]
[367955894,1750975840372,-426.84120815,0.00021643,2]
[367955896,1750975840382,-430.0,0.00021643,2]
[367955897,1750975840391,-433.90066907,0.00021643,2]
[367955899,1750975840400,-460.0,0.00021643,2]
[367955901,1750975840410,-460.0,0.00021643,2]
[367955903,1750975840419,-460.0,0.00021643,2]
[367955905,1750975840428,-460.0,0.00021643,2]
[367955907,1750975840438,-460.0,0.00021643,2]
[367955909,1750975840447,-592.13,0.00021643,2]
[367955911,1750975840458,-460.0,0.00021643,2]
[367955913,1750975840468,-460.0,0.00021643,2]
[367955915,1750975840478,-460.0,0.00021643,2]
[367955917,1750975840487,-460.0,0.00021643,2]
[367955919,1750975840496,-460.0,0.00021643,2]
[367955921,1750975840506,-725.59,0.00021643,2]
[367955923,1750975840515,-460.0,0.00021643,2]
[367955925,1750975840525,-460.0,0.00021643,2]
[367955927,1750975840535,-456.34398814,0.00021643,2]
[367955929,1750975840544,-1124.93,0.00021643,2]
[367955931,1750975840553,-460.0,0.00021643,2]
[367955933,1750975840562,-460.0,0.00021643,2]
[367955935,1750975840572,-412.47899682,0.00021643,2]
[367955937,1750975840581,-460.0,0.00021643,2]
[367955939,1750975840591,-460.0,0.00021643,2]
[367955941,1750975840600,-460.0,0.00021643,2]
[367955943,1750975840609,-460.0,0.00021643,2]
[367955945,1750975840619,-460.0,0.00021643,2]
[367955946,1750975840628,-460.0,0.00021643,2]
[367955948,1750975840638,-460.0,0.00021643,2]
[367955951,1750975840647,-274.04412847,0.00021643,2]
[367955952,1750975840657,-460.0,0.00021643,2]